{"text_format":"3","workbook":"xlsx","n_sheets":8,"sheets":["Instruções","Regulares de Rotina","Encontros Ocasionais","Potenciais Clientes","Plano de Rede do T1","Plano de Rede do T2","Plano de Rede do T3","Plano de Rede do T4"],"not_rendered":{"defined_names":7},"read":"whole","date_system":"1900"}

{"sheet":"Instruções","index":0,"n_rows":17,"n_cols":5,"rows_kept":17,"merged":[[0,0,0,2],[1,1,1,6],[2,1,2,6],[3,1,3,6],[4,1,4,6],[5,1,5,6],[6,1,6,6],[7,1,7,6],[8,1,8,6],[9,1,9,6],[10,1,10,6],[11,1,11,6]]}
["Controlador de Base de Contatos",null,null,"Instruções"]
[null,"1. Decida em que categoria se enquadra o seu contacto:"]
[null,"• Regulares de Rotina- pessoas com quem gostaria de manter o seu contacto de forma regular"]
[null,"• Encontros Ocasionais - pessoas com quem gostaria de falar algumas vezes por ano"]
[null,"• Potenciais Clientes - pessoas/empresas que gostaria de manter em arquivo para entrar em contacto quando for oportuno"]
[null,"2. Abra o separador da folha de cálculo correspondente."]
[null,"3. Insira as informações (para criar uma nova linha numa célula, prima Alt+Enter no Windows ou Opção+Enter num Mac)."]
[null,"Consulte aqui as novas instruções de linha para aplicações móveis do Excel."]
[null,"4. Na coluna Reunião De Seguimento,, elimine a data/fórmula de exemplo, insira quando quiser entrar em contacto, \ne, em seguida, prima Enter."]
[null,"5. A coluna Reunião de Seguimento ficará a vermelho quando a data estiver muito próxima, amarela quando estiver a aproximar-se e \nverde quando tiver muito tempo."]
[null,"6. À medida que a data de seguimento se aproxima, a cor irá mudar em função disso."]
[null,"7. Depois de contactar o seu contacto, digite SIM na colunaDone?. A data ficará a cinzento. "]
[null,"8. Se quiser entrar novamente em contato com eles, substitua SIM por NÃO e digite uma nova data para uma Reunião de Seguimento."]
[null,null,"Vermelho","Amarelo","Verde"]
[null,"Regulares de Rotina","1 a 3 dias de distância","4 a 7 dias de distância","8 a 14 dias de distância"]
[null,"Encontros Ocasionais","1 a 7 dias de distância","8 a 45 dias de distância","46-90+ dias de distância"]
[null,"Potenciais Clientes","1-14 dias de distância","15 a 60 dias de distância","60-120+ dias de distância"]

{"sheet":"Regulares de Rotina","index":1,"n_rows":7,"n_cols":8,"rows_kept":7,"merged":[[0,0,0,2]]}
["Controlador de Base de Contatos",null,null,"Regulares de Rotina"]
[]
["Nome","Empresa","Informações de Contacto","Onde Nos Encontramos","Notas","Reunião de Seguimento","Concluído","Notas da conversação"]
["Garth Fort","Adventure Works","Gestor de Projetos\ngarth@adventure-works.com\n(234) 555-0134\nadventure-works.com\nlinkedin.com/in/garth-fort","Feira comercial de 2010","Pergunte sobre a filha Sandy e como está a correr a remodelação. Não gosta de grandes grupos e de comida picante.",{"$f":"TODAY()+8","v":"2021-07-20"},"NÃO"]
["Nome","Nome da Empresa","Cargo\nEndereço de e-mail\nNúmero de telefone\nSite\nLigações de perfil social\n","Localização","Coloque as notas que se pretende lembrar sobre esta pessoa; onde se reuniu, sobre o que fala, o que pretende mostrar da próxima vez que falar, etc.",{"$f":"TODAY()-3","v":"2021-07-09"},"SIM"]
["Nome","Nome da Empresa","Cargo\nEndereço de e-mail\nNúmero de telefone\nSite\nLigações de perfil social\n","Localização","Coloque as notas que se pretende lembrar sobre esta pessoa; onde se reuniu, sobre o que fala, o que pretende mostrar da próxima vez que falar, etc.",{"$f":"TODAY()+-3","v":"2021-07-09"},"NÃO"]
["Nome","Nome da Empresa","Cargo\nEndereço de e-mail\nNúmero de telefone\nSite\nLigações de perfil social\n","Localização","Coloque as notas que se pretende lembrar sobre esta pessoa; onde se reuniu, sobre o que fala, o que pretende mostrar da próxima vez que falar, etc.",{"$f":"TODAY()+6","v":"2021-07-18"},"NÃO"]

{"sheet":"Encontros Ocasionais","index":2,"n_rows":7,"n_cols":8,"rows_kept":7,"merged":[[0,0,0,2]]}
["Controlador de Base de Contatos",null,null,"Encontros Ocasionais"]
[]
["Nome","Empresa","Informações de Contacto","Onde Nos Encontramos","Notas","Reunião de Seguimento","Concluído","Notas da conversação"]
["Garth Fort","Adventure Works","Gestor de Recursos\ngarth@adventure-works.com\n(434) 555-0123\nwww.adventure-works.com\nlinkedin.com/in/garth-fort","Férias em Vermont, 2016","Útil para contratar contactos, assim como para perguntas de marketing",{"$f":"TODAY()+90","v":"2021-10-10"},"NÃO"]
["Nome","Nome da Empresa","Cargo\nEndereço de e-mail\nNúmero de telefone\nSite\nLigações de perfil social\n","Localização","Coloque as notas que se pretende lembrar sobre esta pessoa; onde se reuniu, sobre o que fala, o que pretende mostrar da próxima vez que falar, etc.",{"$f":"TODAY()-3","v":"2021-07-09"},"SIM"]
["Nome","Nome da Empresa","Cargo\nEndereço de e-mail\nNúmero de telefone\nSite\nLigações de perfil social\n","Localização","Coloque as notas que se pretende lembrar sobre esta pessoa; onde se reuniu, sobre o que fala, o que pretende mostrar da próxima vez que falar, etc.",{"$f":"TODAY()+-3","v":"2021-07-09"},"NÃO"]
["Nome","Nome da Empresa","Cargo\nEndereço de e-mail\nNúmero de telefone\nSite\nLigações de perfil social\n","Localização","Coloque as notas que se pretende lembrar sobre esta pessoa; onde se reuniu, sobre o que fala, o que pretende mostrar da próxima vez que falar, etc.",{"$f":"TODAY()+40","v":"2021-08-21"},"NÃO"]

{"sheet":"Potenciais Clientes","index":3,"n_rows":7,"n_cols":8,"rows_kept":7,"merged":[[0,0,0,2]]}
["Controlador de Base de Contatos",null,null,"Potenciais Clientes"]
[]
["Nome","Empresa","Informações de Contacto","Onde Nos Encontramos","Notas","Reunião de Seguimento","Concluído","Notas da conversação"]
["Garth Fort","Freelancer","Designer\nalguem@example.com\n425-555-0123\nexample.com\nlinkedin.com/in/garth-fort","Conclusão de Curso do filho, 2016","Conclusão de curso recente – habilidade elevada. Pode ser útil para clientes futuros.",{"$f":"TODAY()+89","v":"2021-10-09"},"NÃO"]
["Nome","Nome da Empresa","Cargo\nEndereço de e-mail\nNúmero de telefone\nSite\nLigações de perfil social\n","Localização","Coloque as notas que se pretende lembrar sobre esta pessoa; onde se reuniu, sobre o que fala, o que pretende mostrar da próxima vez que falar, etc.",{"$f":"TODAY()-3","v":"2021-07-09"},"SIM"]
["Nome","Nome da Empresa","Cargo\nEndereço de e-mail\nNúmero de telefone\nSite\nLigações de perfil social\n","Localização","Coloque as notas que se pretende lembrar sobre esta pessoa; onde se reuniu, sobre o que fala, o que pretende mostrar da próxima vez que falar, etc.",{"$f":"TODAY()+-3","v":"2021-07-09"},"NÃO"]
["Nome","Nome da Empresa","Cargo\nEndereço de e-mail\nNúmero de telefone\nSite\nLigações de perfil social\n","Localização","Coloque as notas que se pretende lembrar sobre esta pessoa; onde se reuniu, sobre o que fala, o que pretende mostrar da próxima vez que falar, etc.",{"$f":"TODAY()+30","v":"2021-08-11"},"NÃO"]

{"sheet":"Plano de Rede do T1","index":4,"n_rows":20,"n_cols":6,"rows_kept":20,"merged":[[0,0,0,3],[2,0,2,3],[4,0,4,3],[14,5,17,5],[18,0,18,3]]}
["Plano de Expansão de Rede"]
["Instruções"]
["Escreva como pretende expandir a sua rede neste trimestre (por exemplo, fazer mais chamadas, viajar mais, etc.). Em seguida, sempre que receber um novo contacto, altere o número de Contactos Reais Feitos para controlar e ver o quão perto está de chegar ao seu objetivo."]
[]
["Como pretendo expandir a minha rede neste trimestre"]
["1. Fazer mais chamadas"]
["2. Viajar mais"]
[]
[]
[]
[]
[]
[]
["Objetivo de Contactos Trimestrais","Prazo","Contactos Trimestrais Reais Feitos","Resultados"]
[20,{"$f":"TODAY()","v":"2021-07-12"},12,{"$f":"IF(tblGoals[[#This Row],[Objetivo de Contactos Trimestrais]]>0,tblGoals[[#This Row],[Contactos Trimestrais Reais Feitos]]/tblGoals[[#This Row],[Objetivo de Contactos Trimestrais]],\"\")","v":{"v":0.6,"d":"60%"}},null,"0% - 25%\n26% - 50%\n51% - 75%\n76% - 100%\n\nA cor altera consoante a percentagem alcançada"]
[{"$nulls":3},{"$f":"IF(tblGoals[[#This Row],[Objetivo de Contactos Trimestrais]]>0,tblGoals[[#This Row],[Contactos Trimestrais Reais Feitos]]/tblGoals[[#This Row],[Objetivo de Contactos Trimestrais]],\"\")","v":""}]
[{"$nulls":3},{"$f":"IF(tblGoals[[#This Row],[Objetivo de Contactos Trimestrais]]>0,tblGoals[[#This Row],[Contactos Trimestrais Reais Feitos]]/tblGoals[[#This Row],[Objetivo de Contactos Trimestrais]],\"\")","v":""}]
[]
["Reflexão sobre o resultado/Notas para melhoria"]
["Aproximou-se. Em vez disso, tente ligar por volta da hora do almoço."]

{"sheet":"Plano de Rede do T2","index":5,"n_rows":20,"n_cols":6,"rows_kept":20,"merged":[[0,0,0,3],[2,0,2,3],[4,0,4,3],[14,5,17,5],[18,0,18,3]]}
["Plano de Expansão de Rede"]
["Instruções"]
["Escreva como pretende expandir a sua rede neste trimestre (por exemplo, fazer mais chamadas, viajar mais, etc.). Em seguida, sempre que receber um novo contacto, altere o número de Contactos Reais Feitos para controlar e ver o quão perto está de chegar ao seu objetivo."]
[]
["Como pretendo expandir a minha rede neste trimestre"]
["1. Fazer mais chamadas"]
["2. Viajar mais"]
[]
[]
[]
[]
[]
[]
["Objetivo de Contactos Trimestrais","Prazo","Contactos Trimestrais Reais Feitos","Resultados"]
[20,{"$f":"TODAY()","v":"2021-07-12"},12,{"$f":"IF(tblGoals3[[#This Row],[Objetivo de Contactos Trimestrais]]>0,tblGoals3[[#This Row],[Contactos Trimestrais Reais Feitos]]/tblGoals3[[#This Row],[Objetivo de Contactos Trimestrais]],\"\")","v":{"v":0.6,"d":"60%"}},null,"0% - 25%\n26% - 50%\n51% - 75%\n76% - 100%\n\nA cor altera consoante a percentagem alcançada"]
[{"$nulls":3},{"$f":"IF(tblGoals3[[#This Row],[Objetivo de Contactos Trimestrais]]>0,tblGoals3[[#This Row],[Contactos Trimestrais Reais Feitos]]/tblGoals3[[#This Row],[Objetivo de Contactos Trimestrais]],\"\")","v":""}]
[{"$nulls":3},{"$f":"IF(tblGoals3[[#This Row],[Objetivo de Contactos Trimestrais]]>0,tblGoals3[[#This Row],[Contactos Trimestrais Reais Feitos]]/tblGoals3[[#This Row],[Objetivo de Contactos Trimestrais]],\"\")","v":""}]
[]
["Reflexão sobre o resultado/Notas para melhoria"]
["Aproximou-se. Em vez disso, tente ligar por volta da hora do almoço."]

{"sheet":"Plano de Rede do T3","index":6,"n_rows":20,"n_cols":6,"rows_kept":20,"merged":[[0,0,0,3],[2,0,2,3],[4,0,4,3],[14,5,17,5],[18,0,18,3]]}
["Plano de Expansão de Rede"]
["Instruções"]
["Escreva como pretende expandir a sua rede neste trimestre (por exemplo, fazer mais chamadas, viajar mais, etc.). Em seguida, sempre que receber um novo contacto, altere o número de Contactos Reais Feitos para controlar e ver o quão perto está de chegar ao seu objetivo."]
[]
["Como pretendo expandir a minha rede neste trimestre"]
["1. Fazer mais chamadas"]
["2. Viajar mais"]
[]
[]
[]
[]
[]
[]
["Objetivo de Contactos Trimestrais","Prazo","Contactos Trimestrais Reais Feitos","Resultados"]
[20,{"$f":"TODAY()","v":"2021-07-12"},12,{"$f":"IF(tblGoals34[[#This Row],[Objetivo de Contactos Trimestrais]]>0,tblGoals34[[#This Row],[Contactos Trimestrais Reais Feitos]]/tblGoals34[[#This Row],[Objetivo de Contactos Trimestrais]],\"\")","v":{"v":0.6,"d":"60%"}},null,"0% - 25%\n26% - 50%\n51% - 75%\n76% - 100%\n\nA cor altera consoante a percentagem alcançada"]
[{"$nulls":3},{"$f":"IF(tblGoals34[[#This Row],[Objetivo de Contactos Trimestrais]]>0,tblGoals34[[#This Row],[Contactos Trimestrais Reais Feitos]]/tblGoals34[[#This Row],[Objetivo de Contactos Trimestrais]],\"\")","v":""}]
[{"$nulls":3},{"$f":"IF(tblGoals34[[#This Row],[Objetivo de Contactos Trimestrais]]>0,tblGoals34[[#This Row],[Contactos Trimestrais Reais Feitos]]/tblGoals34[[#This Row],[Objetivo de Contactos Trimestrais]],\"\")","v":""}]
[]
["Reflexão sobre o resultado/Notas para melhoria"]
["Aproximou-se. Em vez disso, tente ligar por volta da hora do almoço."]

{"sheet":"Plano de Rede do T4","index":7,"n_rows":20,"n_cols":6,"rows_kept":20,"merged":[[0,0,0,3],[2,0,2,3],[4,0,4,3],[14,5,17,5],[18,0,18,3]]}
["Plano de Expansão de Rede"]
["Instruções"]
["Escreva como pretende expandir a sua rede neste trimestre (por exemplo, fazer mais chamadas, viajar mais, etc.). Em seguida, sempre que receber um novo contacto, altere o número de Contactos Reais Feitos para controlar e ver o quão perto está de chegar ao seu objetivo."]
[]
["Como pretendo expandir a minha rede neste trimestre"]
["1. Fazer mais chamadas"]
["2. Viajar mais"]
[]
[]
[]
[]
[]
[]
["Objetivo de Contactos Trimestrais","Prazo","Contactos Trimestrais Reais Feitos","Resultados"]
[20,{"$f":"TODAY()","v":"2021-07-12"},12,{"$f":"IF(tblGoals348[[#This Row],[Objetivo de Contactos Trimestrais]]>0,tblGoals348[[#This Row],[Contactos Trimestrais Reais Feitos]]/tblGoals348[[#This Row],[Objetivo de Contactos Trimestrais]],\"\")","v":{"v":0.6,"d":"60%"}},null,"0% - 25%\n26% - 50%\n51% - 75%\n76% - 100%\n\nA cor altera consoante a percentagem alcançada"]
[{"$nulls":3},{"$f":"IF(tblGoals348[[#This Row],[Objetivo de Contactos Trimestrais]]>0,tblGoals348[[#This Row],[Contactos Trimestrais Reais Feitos]]/tblGoals348[[#This Row],[Objetivo de Contactos Trimestrais]],\"\")","v":""}]
[{"$nulls":3},{"$f":"IF(tblGoals348[[#This Row],[Objetivo de Contactos Trimestrais]]>0,tblGoals348[[#This Row],[Contactos Trimestrais Reais Feitos]]/tblGoals348[[#This Row],[Objetivo de Contactos Trimestrais]],\"\")","v":""}]
[]
["Reflexão sobre o resultado/Notas para melhoria"]
["Aproximou-se. Em vez disso, tente ligar por volta da hora do almoço."]